[Event "December 5 Late 2023"]
[Site "https://www.chess.com"]
[Date "2023.12.05"]
[Round "1"]
[White "Goltsev, Dmitry"]
[Black "youngdinousaur"]
[Result "1-0"]
[Board "115"]
[TimeControl "180+1"]
[WhiteFideId "24176710"]
[WhiteElo "2647"]
[BlackElo "2330"]
[WhiteTeam "RUS"]
[WhiteClock "0:00:08"]
[BlackClock "0:00:09"]

1. e4 {[%clk 0:02:53]}  c5 {[%clk 0:03:00]} 2. Nf3 {[%clk 0:02:52]}  e6 {[%clk 0:03:00]} 3. b3 {[%clk 0:02:52]}  Nc6 {[%clk 0:03:00]} 4. Bb2 {[%clk 0:02:53]}  d5 {[%clk 0:02:59]} 5. exd5 {[%clk 0:02:53]}  exd5 {[%clk 0:03:00]} 6. Bb5 {[%clk 0:02:53]}  Nf6 {[%clk 0:03:00]} 7. O-O {[%clk 0:02:53]}  Be7 {[%clk 0:03:01]} 8. Ne5 {[%clk 0:02:50]}  Qc7 {[%clk 0:02:58]} 9. Re1 {[%clk 0:02:46]}  Be6 {[%clk 0:02:55]} 10. d3 {[%clk 0:02:30]}  O-O {[%clk 0:02:55]} 11. Bxc6 {[%clk 0:02:31]}  bxc6 {[%clk 0:02:55]} 12. Nd2 {[%clk 0:02:29]}  Bd6 {[%clk 0:02:52]} 13. f4 {[%clk 0:02:23]}  Rfe8 {[%clk 0:02:51]} 14. Qf3 {[%clk 0:02:19]}  Bf5 {[%clk 0:02:47]} 15. g4 {[%clk 0:02:10]}  Bc8 {[%clk 0:02:22]} 16. h3 {[%clk 0:01:56]}  Nd7 {[%clk 0:02:17]} 17. Nxf7 {[%clk 0:01:09]}  Rxe1+ {[%clk 0:01:54]} 18. Rxe1 {[%clk 0:01:06]}  Kxf7 {[%clk 0:01:55]} 19. g5 {[%clk 0:00:57]}  Nf8 {[%clk 0:01:47]} 20. Qh5+ {[%clk 0:00:53]}  Kg8 {[%clk 0:01:46]} 21. Nf3 {[%clk 0:00:41]}  Bf5 {[%clk 0:01:29]} 22. Ne5 {[%clk 0:00:37]}  Ng6 {[%clk 0:01:25]} 23. Qf3 {[%clk 0:00:27]}  Rf8 {[%clk 0:01:21]} 24. Qg3 {[%clk 0:00:13]}  Bxe5 {[%clk 0:01:03]} 25. fxe5 {[%clk 0:00:14]}  Be6 {[%clk 0:01:04]} 26. h4 {[%clk 0:00:12]}  Qf7 {[%clk 0:00:52]} 27. Ba3 {[%clk 0:00:10]}  Qf4 {[%clk 0:00:48]} 28. Qxf4 {[%clk 0:00:10]}  Rxf4 {[%clk 0:00:49]} 29. h5 {[%clk 0:00:09]}  Nh4 {[%clk 0:00:45]} 30. Re3 {[%clk 0:00:09]}  Rg4+ {[%clk 0:00:43]} 31. Kf1 {[%clk 0:00:08]}  Rxg5 {[%clk 0:00:43]} 32. Bxc5 {[%clk 0:00:08]}  Rxh5 {[%clk 0:00:38]} 33. Bxa7 {[%clk 0:00:07]}  Ng6 {[%clk 0:00:38]} 34. Bd4 {[%clk 0:00:05]}  Rh2 {[%clk 0:00:37]} 35. Re2 {[%clk 0:00:05]}  Rxe2 {[%clk 0:00:36]} 36. Kxe2 {[%clk 0:00:05]}  Kf7 {[%clk 0:00:36]} 37. a4 {[%clk 0:00:05]}  Ke8 {[%clk 0:00:36]} 38. a5 {[%clk 0:00:05]}  Kd7 {[%clk 0:00:37]} 39. b4 {[%clk 0:00:05]}  Kc7 {[%clk 0:00:36]} 40. Bb6+ {[%clk 0:00:04]}  Kb7 {[%clk 0:00:36]} 41. d4 {[%clk 0:00:04]}  h5 {[%clk 0:00:36]} 42. Kf3 {[%clk 0:00:04]}  Bg4+ {[%clk 0:00:34]} 43. Kg3 {[%clk 0:00:04]}  Bf5 {[%clk 0:00:31]} 44. c3 {[%clk 0:00:04]}  h4+ {[%clk 0:00:31]} 45. Kh2 {[%clk 0:00:04]}  Nf4 {[%clk 0:00:28]} 46. Bc5 {[%clk 0:00:03]}  Ne6 {[%clk 0:00:27]} 47. Be7 {[%clk 0:00:03]}  g5 {[%clk 0:00:26]} 48. Bf6 {[%clk 0:00:04]}  Ka6 {[%clk 0:00:24]} 49. Be7 {[%clk 0:00:04]}  h3 {[%clk 0:00:21]} 50. Bf6 {[%clk 0:00:04]}  g4 {[%clk 0:00:21]} 51. Kg3 {[%clk 0:00:04]}  Nc7 {[%clk 0:00:20]} 52. Bg5 {[%clk 0:00:02]}  Nb5 {[%clk 0:00:20]} 53. Bd2 {[%clk 0:00:03]}  Na3 {[%clk 0:00:20]} 54. Be1 {[%clk 0:00:03]}  Nb1 {[%clk 0:00:20]} 55. Kh2 {[%clk 0:00:03]}  Be4 {[%clk 0:00:20]} 56. e6 {[%clk 0:00:03]}  Bf3 {[%clk 0:00:20]} 57. e7 {[%clk 0:00:03]}  Nxc3 {[%clk 0:00:15]} 58. e8=Q {[%clk 0:00:04]}  Ne4 {[%clk 0:00:14]} 59. Qd8 {[%clk 0:00:04]}  Kb5 {[%clk 0:00:14]} 60. Qb6+ {[%clk 0:00:04]}  Kc4 {[%clk 0:00:15]} 61. Qxc6+ {[%clk 0:00:05]}  Kd3 {[%clk 0:00:15]} 62. a6 {[%clk 0:00:06]}  Bg2 {[%clk 0:00:13]} 63. a7 {[%clk 0:00:05]}  Ke2 {[%clk 0:00:14]} 64. Qc1 {[%clk 0:00:05]}  Kf3 {[%clk 0:00:13]} 65. a8=Q {[%clk 0:00:06]}  g3+ {[%clk 0:00:13]} 66. Bxg3 {[%clk 0:00:06]}  Nxg3 {[%clk 0:00:13]} 67. Qf8+ {[%clk 0:00:07]}  Ke4 {[%clk 0:00:13]} 68. Qff4+ {[%clk 0:00:07]}  Kd3 {[%clk 0:00:09]} 69. Qxg3+ {[%clk 0:00:08]} 1-0

[Event "December 5 Late 2023"]
[Site "https://www.chess.com"]
[Date "2023.12.05"]
[Round "1"]
[White "Cieslak, Patryk"]
[Black "Biliy, Vadim"]
[Result "1-0"]
[Board "117"]
[TimeControl "180+1"]
[WhiteFideId "21078882"]
[BlackFideId "14114127"]
[WhiteElo "2641"]
[BlackElo "2325"]
[WhiteTeam "POL"]
[BlackTeam "UKR"]
[WhiteClock "0:00:53"]
[BlackClock "0:00:02"]

1. e4 {[%clk 0:03:00]}  d6 {[%clk 0:02:56]} 2. d4 {[%clk 0:03:00]}  Nf6 {[%clk 0:02:55]} 3. Nc3 {[%clk 0:03:00]}  g6 {[%clk 0:02:54]} 4. Be3 {[%clk 0:02:51]}  c6 {[%clk 0:02:54]} 5. Qd2 {[%clk 0:02:51]}  b5 {[%clk 0:02:53]} 6. f3 {[%clk 0:02:51]}  Nbd7 {[%clk 0:02:53]} 7. h4 {[%clk 0:02:51]}  Rb8 {[%clk 0:02:53]} 8. Nh3 {[%clk 0:02:48]}  Nb6 {[%clk 0:02:52]} 9. b3 {[%clk 0:02:43]}  Bg7 {[%clk 0:02:39]} 10. Bh6 {[%clk 0:02:41]}  O-O {[%clk 0:02:34]} 11. Bxg7 {[%clk 0:02:28]}  Kxg7 {[%clk 0:02:33]} 12. Nf4 {[%clk 0:02:10]}  e5 {[%clk 0:02:32]} 13. dxe5 {[%clk 0:02:08]}  dxe5 {[%clk 0:02:31]} 14. Qxd8 {[%clk 0:02:05]}  Rxd8 {[%clk 0:02:30]} 15. Nd3 {[%clk 0:02:06]}  Nbd7 {[%clk 0:02:14]} 16. a4 {[%clk 0:02:05]}  a6 {[%clk 0:02:07]} 17. Be2 {[%clk 0:01:48]}  Nh5 {[%clk 0:02:05]} 18. Kf2 {[%clk 0:01:45]}  Nf4 {[%clk 0:02:01]} 19. axb5 {[%clk 0:01:16]}  axb5 {[%clk 0:01:56]} 20. Nb4 {[%clk 0:01:16]}  Nxe2 {[%clk 0:01:45]} 21. Kxe2 {[%clk 0:01:10]}  Bb7 {[%clk 0:01:42]} 22. Rhd1 {[%clk 0:01:10]}  Nc5 {[%clk 0:01:37]} 23. Rxd8 {[%clk 0:01:07]}  Rxd8 {[%clk 0:01:36]} 24. Nd3 {[%clk 0:01:03]}  Nxd3 {[%clk 0:01:29]} 25. cxd3 {[%clk 0:01:04]}  Ra8 {[%clk 0:01:27]} 26. Rxa8 {[%clk 0:01:04]}  Bxa8 {[%clk 0:01:27]} 27. b4 {[%clk 0:01:04]}  Kf6 {[%clk 0:01:26]} 28. Ke3 {[%clk 0:01:04]}  Ke6 {[%clk 0:01:24]} 29. d4 {[%clk 0:01:03]}  f5 {[%clk 0:01:21]} 30. dxe5 {[%clk 0:00:59]}  Kxe5 {[%clk 0:01:16]} 31. f4+ {[%clk 0:00:58]}  Ke6 {[%clk 0:01:14]} 32. e5 {[%clk 0:00:55]}  Bb7 {[%clk 0:01:11]} 33. Kd4 {[%clk 0:00:53]}  Bc8 {[%clk 0:01:07]} 34. Kc5 {[%clk 0:00:50]}  Bd7 {[%clk 0:01:07]} 35. Ne2 {[%clk 0:00:50]}  Kf7 {[%clk 0:00:50]} 36. Nd4 {[%clk 0:00:51]}  Be8 {[%clk 0:00:44]} 37. Nxc6 {[%clk 0:00:50]}  h6 {[%clk 0:00:36]} 38. Kd6 {[%clk 0:00:48]}  g5 {[%clk 0:00:31]} 39. hxg5 {[%clk 0:00:48]}  hxg5 {[%clk 0:00:31]} 40. g3 {[%clk 0:00:47]}  Kg6 {[%clk 0:00:28]} 41. e6 {[%clk 0:00:46]}  Kh5 {[%clk 0:00:27]} 42. Ne5 {[%clk 0:00:46]}  gxf4 {[%clk 0:00:23]} 43. gxf4 {[%clk 0:00:47]}  Kh4 {[%clk 0:00:23]} 44. Ke7 {[%clk 0:00:47]}  Bh5 {[%clk 0:00:23]} 45. Kf6 {[%clk 0:00:47]}  Bg4 {[%clk 0:00:18]} 46. e7 {[%clk 0:00:46]}  Kg3 {[%clk 0:00:19]} 47. e8=Q {[%clk 0:00:46]}  Kxf4 {[%clk 0:00:19]} 48. Qb8 {[%clk 0:00:47]}  Ke3 {[%clk 0:00:18]} 49. Ng6 {[%clk 0:00:48]}  Kd3 {[%clk 0:00:13]} 50. Qf4 {[%clk 0:00:48]}  Kc3 {[%clk 0:00:13]} 51. Ne5 {[%clk 0:00:49]}  Kb3 {[%clk 0:00:11]} 52. Ke7 {[%clk 0:00:50]}  Kc3 {[%clk 0:00:09]} 53. Kd6 {[%clk 0:00:51]}  Kb3 {[%clk 0:00:08]} 54. Kc5 {[%clk 0:00:52]}  Kc3 {[%clk 0:00:08]} 55. Qe3+ {[%clk 0:00:52]}  Kc2 {[%clk 0:00:02]} 56. Kd4 {[%clk 0:00:53]} 1-0

[Event "December 5 Late 2023"]
[Site "https://www.chess.com"]
[Date "2023.12.05"]
[Round "1"]
[White "Agibileg, Uurtsaikh"]
[Black "Gerbelli Neto, Eduardo"]
[Result "1-0"]
[Board "119"]
[TimeControl "180+1"]
[WhiteFideId "4901606"]
[BlackFideId "2103281"]
[WhiteElo "2637"]
[BlackElo "2324"]
[WhiteTeam "MGL"]
[BlackTeam "BRA"]
[WhiteClock "0:00:13"]
[BlackClock "0:00:02"]

1. d4 {[%clk 0:02:58]}  d5 {[%clk 0:02:59]} 2. c4 {[%clk 0:02:57]}  c6 {[%clk 0:03:00]} 3. Nf3 {[%clk 0:02:56]}  Nf6 {[%clk 0:03:00]} 4. Nc3 {[%clk 0:02:56]}  e6 {[%clk 0:03:01]} 5. g3 {[%clk 0:02:55]}  dxc4 {[%clk 0:02:54]} 6. Bg2 {[%clk 0:02:55]}  Nbd7 {[%clk 0:02:52]} 7. O-O {[%clk 0:02:53]}  Be7 {[%clk 0:02:46]} 8. e4 {[%clk 0:02:41]}  O-O {[%clk 0:02:37]} 9. a4 {[%clk 0:02:42]}  b6 {[%clk 0:02:32]} 10. Qe2 {[%clk 0:02:40]}  Ba6 {[%clk 0:02:31]} 11. Rd1 {[%clk 0:02:40]}  Re8 {[%clk 0:02:27]} 12. Bf4 {[%clk 0:02:24]}  Nh5 {[%clk 0:02:17]} 13. Be3 {[%clk 0:02:21]}  Nhf6 {[%clk 0:02:17]} 14. Ne5 {[%clk 0:02:20]}  Nxe5 {[%clk 0:02:08]} 15. dxe5 {[%clk 0:02:19]}  Nd7 {[%clk 0:02:09]} 16. f4 {[%clk 0:02:16]}  Qc7 {[%clk 0:02:06]} 17. h4 {[%clk 0:02:01]}  Nc5 {[%clk 0:02:06]} 18. h5 {[%clk 0:01:55]}  h6 {[%clk 0:02:05]} 19. Qg4 {[%clk 0:01:11]}  Kf8 {[%clk 0:01:35]} 20. f5 {[%clk 0:01:08]}  exf5 {[%clk 0:01:17]} 21. exf5 {[%clk 0:01:05]}  Bg5 {[%clk 0:01:12]} 22. Bxg5 {[%clk 0:00:40]}  hxg5 {[%clk 0:01:12]} 23. e6 {[%clk 0:00:41]}  f6 {[%clk 0:01:03]} 24. Ne4 {[%clk 0:00:25]}  Nxe4 {[%clk 0:01:01]} 25. Qxe4 {[%clk 0:00:20]}  Qxg3 {[%clk 0:00:53]} 26. Rd7 {[%clk 0:00:17]}  Re7 {[%clk 0:00:29]} 27. Rxe7 {[%clk 0:00:15]}  Kxe7 {[%clk 0:00:30]} 28. Qxc6 {[%clk 0:00:15]}  Rd8 {[%clk 0:00:15]} 29. a5 {[%clk 0:00:16]}  Qe3+ {[%clk 0:00:12]} 30. Kh1 {[%clk 0:00:13]}  Rd4 {[%clk 0:00:08]} 31. Qc7+ {[%clk 0:00:13]}  Ke8 {[%clk 0:00:02]} 32. Bc6+ {[%clk 0:00:13]} 1-0

[Event "December 5 Late 2023"]
[Site "https://www.chess.com"]
[Date "2023.12.05"]
[Round "1"]
[White "Kujawski, Adam"]
[Black "Rojas Alarcon, Julian Antonio"]
[Result "0-1"]
[Board "122"]
[TimeControl "180+1"]
[WhiteFideId "1100920"]
[BlackFideId "5107407"]
[WhiteElo "2315"]
[BlackElo "2632"]
[WhiteTeam "POL"]
[BlackTeam "MEX"]
[WhiteClock "0:00:11"]
[BlackClock "0:02:30"]

1. e4 {[%clk 0:02:56]}  c5 {[%clk 0:02:57]} 2. Nf3 {[%clk 0:02:56]}  d6 {[%clk 0:02:56]} 3. d4 {[%clk 0:02:56]}  cxd4 {[%clk 0:02:57]} 4. Nxd4 {[%clk 0:02:56]}  Nf6 {[%clk 0:02:58]} 5. Nc3 {[%clk 0:02:57]}  a6 {[%clk 0:02:59]} 6. Bg5 {[%clk 0:02:56]}  e6 {[%clk 0:02:58]} 7. f4 {[%clk 0:02:56]}  h6 {[%clk 0:02:53]} 8. Bh4 {[%clk 0:02:55]}  Qb6 {[%clk 0:02:52]} 9. Qd3 {[%clk 0:02:55]}  Nbd7 {[%clk 0:02:51]} 10. O-O-O {[%clk 0:02:45]}  Be7 {[%clk 0:02:50]} 11. g4 {[%clk 0:02:27]}  g5 {[%clk 0:02:49]} 12. Bf2 {[%clk 0:02:10]}  gxf4 {[%clk 0:02:49]} 13. Nxe6 {[%clk 0:02:08]}  Qxf2 {[%clk 0:02:47]} 14. Nc7+ {[%clk 0:02:08]}  Kf8 {[%clk 0:02:46]} 15. Nxa8 {[%clk 0:02:08]}  Ne5 {[%clk 0:02:46]} 16. Qd4 {[%clk 0:01:30]}  Nexg4 {[%clk 0:02:39]} 17. Nc7 {[%clk 0:01:20]}  Ne3 {[%clk 0:02:32]} 18. N7d5 {[%clk 0:00:11]}  Qxc2# {[%clk 0:02:30]} 0-1

[Event "December 5 Late 2023"]
[Site "https://www.chess.com"]
[Date "2023.12.05"]
[Round "1"]
[White "Kornyukov, Alexey"]
[Black "Miranda, Rafael"]
[Result "0-1"]
[Board "124"]
[TimeControl "180+1"]
[WhiteFideId "4150457"]
[BlackFideId "130990"]
[WhiteElo "2312"]
[BlackElo "2624"]
[WhiteTeam "RUS"]
[BlackTeam "ARG"]
[WhiteClock "0:00:01"]
[BlackClock "0:00:25"]

1. d4 {[%clk 0:02:42]}  d6 {[%clk 0:02:59]} 2. c4 {[%clk 0:02:40]}  e5 {[%clk 0:02:59]} 3. d5 {[%clk 0:02:38]}  f5 {[%clk 0:02:59]} 4. e4 {[%clk 0:02:37]}  Nf6 {[%clk 0:02:59]} 5. Nc3 {[%clk 0:02:38]}  fxe4 {[%clk 0:02:58]} 6. Nge2 {[%clk 0:02:37]}  Bg4 {[%clk 0:02:58]} 7. h3 {[%clk 0:02:37]}  Bf5 {[%clk 0:02:56]} 8. Ng3 {[%clk 0:01:38]}  Bg6 {[%clk 0:02:56]} 9. Be3 {[%clk 0:01:36]}  Nbd7 {[%clk 0:02:56]} 10. Qc2 {[%clk 0:01:35]}  Be7 {[%clk 0:02:50]} 11. Ncxe4 {[%clk 0:01:31]}  O-O {[%clk 0:02:49]} 12. Bd3 {[%clk 0:01:30]}  Nxe4 {[%clk 0:02:37]} 13. Bxe4 {[%clk 0:01:25]}  Bxe4 {[%clk 0:02:30]} 14. Nxe4 {[%clk 0:01:26]}  h6 {[%clk 0:02:05]} 15. O-O-O {[%clk 0:01:22]}  Nf6 {[%clk 0:02:01]} 16. g4 {[%clk 0:01:18]}  Nxe4 {[%clk 0:02:01]} 17. Qxe4 {[%clk 0:01:19]}  Bg5 {[%clk 0:02:01]} 18. Rhf1 {[%clk 0:01:03]}  Bf4 {[%clk 0:01:53]} 19. Rd3 {[%clk 0:00:30]}  Bxe3+ {[%clk 0:01:47]} 20. Rxe3 {[%clk 0:00:28]}  Rf4 {[%clk 0:01:48]} 21. Qd3 {[%clk 0:00:22]}  Qg5 {[%clk 0:01:48]} 22. Kc2 {[%clk 0:00:17]}  Raf8 {[%clk 0:01:47]} 23. Qe2 {[%clk 0:00:17]}  Qg6+ {[%clk 0:01:15]} 24. Kb3 {[%clk 0:00:15]}  Qf7 {[%clk 0:01:10]} 25. f3 {[%clk 0:00:12]}  b5 {[%clk 0:01:11]} 26. cxb5 {[%clk 0:00:11]}  Qxd5+ {[%clk 0:01:10]} 27. Kc2 {[%clk 0:00:11]}  Qxa2 {[%clk 0:00:35]} 28. Re4 {[%clk 0:00:10]}  Rxe4 {[%clk 0:00:33]} 29. Qxe4 {[%clk 0:00:09]}  Rf4 {[%clk 0:00:33]} 30. Qa8+ {[%clk 0:00:05]}  Kh7 {[%clk 0:00:33]} 31. Rc1 {[%clk 0:00:02]}  Rc4+ {[%clk 0:00:29]} 32. Kd1 {[%clk 0:00:03]}  Qb3+ {[%clk 0:00:28]} 33. Kd2 {[%clk 0:00:01]}  Qxb2+ {[%clk 0:00:28]} 34. Kd3 {[%clk 0:00:02]}  Qd4+ {[%clk 0:00:26]} 35. Ke2 {[%clk 0:00:01]}  Rxc1 {[%clk 0:00:25]} 36. Qc8 {[%clk 0:00:02]}  Rc2+ {[%clk 0:00:25]} 37. Ke1 {[%clk 0:00:01]}  Qf2+ {[%clk 0:00:24]} 38. Kd1 {[%clk 0:00:01]}  Qd2# {[%clk 0:00:25]} 0-1

[Event "December 5 Late 2023"]
[Site "https://www.chess.com"]
[Date "2023.12.05"]
[Round "1"]
[White "Koksal, Ege"]
[Black "Modric, Nesa"]
[Result "1-0"]
[Board "125"]
[TimeControl "180+1"]
[WhiteFideId "6317626"]
[BlackFideId "922579"]
[WhiteElo "2621"]
[BlackElo "2310"]
[WhiteTeam "TUR"]
[BlackTeam "SRB"]
[WhiteClock "0:00:50"]
[BlackClock "0:00:00"]

1. c4 {[%clk 0:02:58]}  e6 {[%clk 0:02:59]} 2. Nc3 {[%clk 0:02:51]}  d5 {[%clk 0:03:00]} 3. d4 {[%clk 0:02:51]}  Nf6 {[%clk 0:02:59]} 4. Bg5 {[%clk 0:02:51]}  Be7 {[%clk 0:02:59]} 5. e3 {[%clk 0:02:51]}  h6 {[%clk 0:02:56]} 6. Bh4 {[%clk 0:02:51]}  O-O {[%clk 0:02:56]} 7. Nf3 {[%clk 0:02:51]}  b6 {[%clk 0:02:49]} 8. cxd5 {[%clk 0:02:48]}  Nxd5 {[%clk 0:02:49]} 9. Bxe7 {[%clk 0:02:49]}  Qxe7 {[%clk 0:02:49]} 10. Nxd5 {[%clk 0:02:49]}  exd5 {[%clk 0:02:50]} 11. Rc1 {[%clk 0:02:50]}  Bb7 {[%clk 0:02:42]} 12. Be2 {[%clk 0:02:49]}  c5 {[%clk 0:02:40]} 13. Qa4 {[%clk 0:02:50]}  Nd7 {[%clk 0:02:30]} 14. Qa3 {[%clk 0:02:50]}  Rfc8 {[%clk 0:02:22]} 15. O-O {[%clk 0:02:49]}  Kf8 {[%clk 0:02:22]} 16. b3 {[%clk 0:02:50]}  a5 {[%clk 0:02:09]} 17. Bb5 {[%clk 0:02:48]}  Bc6 {[%clk 0:01:55]} 18. Qa4 {[%clk 0:02:49]}  Bxb5 {[%clk 0:01:53]} 19. Qxb5 {[%clk 0:02:49]}  Qd6 {[%clk 0:01:42]} 20. Rc3 {[%clk 0:02:45]}  cxd4 {[%clk 0:01:25]} 21. Rxc8+ {[%clk 0:02:45]}  Rxc8 {[%clk 0:01:26]} 22. Nxd4 {[%clk 0:02:45]}  Rc5 {[%clk 0:00:52]} 23. Qa6 {[%clk 0:02:19]}  g6 {[%clk 0:00:44]} 24. g3 {[%clk 0:02:17]}  Kg7 {[%clk 0:00:43]} 25. Qe2 {[%clk 0:02:05]}  Ne5 {[%clk 0:00:41]} 26. Kg2 {[%clk 0:02:03]}  Nc6 {[%clk 0:00:37]} 27. Rd1 {[%clk 0:02:03]}  Nxd4 {[%clk 0:00:36]} 28. Rxd4 {[%clk 0:02:04]}  f5 {[%clk 0:00:28]} 29. h4 {[%clk 0:02:02]}  h5 {[%clk 0:00:27]} 30. Qd2 {[%clk 0:01:56]}  Kf6 {[%clk 0:00:18]} 31. a3 {[%clk 0:01:55]}  Qc6 {[%clk 0:00:16]} 32. b4 {[%clk 0:01:53]}  axb4 {[%clk 0:00:15]} 33. axb4 {[%clk 0:01:54]}  Rc2 {[%clk 0:00:14]} 34. Qd1 {[%clk 0:01:54]}  Rc4 {[%clk 0:00:13]} 35. Kh2 {[%clk 0:01:45]}  Rxd4 {[%clk 0:00:12]} 36. Qxd4+ {[%clk 0:01:45]}  Kf7 {[%clk 0:00:11]} 37. Qe5 {[%clk 0:01:44]}  b5 {[%clk 0:00:10]} 38. Qd4 {[%clk 0:01:19]}  Qc4 {[%clk 0:00:09]} 39. Kg2 {[%clk 0:01:19]}  Qxd4 {[%clk 0:00:09]} 40. exd4 {[%clk 0:01:20]}  Ke6 {[%clk 0:00:09]} 41. Kf3 {[%clk 0:01:20]}  Kf6 {[%clk 0:00:09]} 42. Kf4 {[%clk 0:01:20]}  Kf7 {[%clk 0:00:06]} 43. Kg5 {[%clk 0:01:21]}  Kg7 {[%clk 0:00:06]} 44. f3 {[%clk 0:00:59]}  Kf7 {[%clk 0:00:06]} 45. Kh6 {[%clk 0:01:00]}  Kf6 {[%clk 0:00:07]} 46. Kh7 {[%clk 0:00:53]}  Kf7 {[%clk 0:00:07]} 47. f4 {[%clk 0:00:52]}  Kf6 {[%clk 0:00:05]} 48. Kg8 {[%clk 0:00:52]}  g5 {[%clk 0:00:03]} 49. hxg5+ {[%clk 0:00:49]}  Kg6 {[%clk 0:00:02]} 50. Kf8 {[%clk 0:00:49]}  h4 {[%clk 0:00:00]} 51. gxh4 {[%clk 0:00:50]} 1-0

[Event "December 5 Late 2023"]
[Site "https://www.chess.com"]
[Date "2023.12.05"]
[Round "1"]
[White "Copeland, Samuel"]
[Black "Gubajdullin, Alexei"]
[Result "1-0"]
[Board "126"]
[TimeControl "180+1"]
[WhiteFideId "2007347"]
[BlackFideId "4141202"]
[WhiteElo "2307"]
[BlackElo "2620"]
[WhiteTeam "USA"]
[BlackTeam "RUS"]
[WhiteClock "0:00:15"]
[BlackClock "0:00:13"]

1. e4 {[%clk 0:02:53]}  g6 {[%clk 0:02:59]} 2. h4 {[%clk 0:02:53]}  h6 {[%clk 0:02:59]} 3. h5 {[%clk 0:02:52]}  g5 {[%clk 0:02:59]} 4. d4 {[%clk 0:02:53]}  Bg7 {[%clk 0:02:56]} 5. f4 {[%clk 0:02:52]}  gxf4 {[%clk 0:02:55]} 6. Bxf4 {[%clk 0:02:53]}  c5 {[%clk 0:02:55]} 7. c3 {[%clk 0:02:51]}  cxd4 {[%clk 0:02:48]} 8. cxd4 {[%clk 0:02:52]}  Qb6 {[%clk 0:02:48]} 9. Nc3 {[%clk 0:02:42]}  Qxb2 {[%clk 0:02:42]} 10. Nb5 {[%clk 0:02:32]}  Nc6 {[%clk 0:02:01]} 11. Rb1 {[%clk 0:02:17]}  Qxa2 {[%clk 0:02:01]} 12. Nc7+ {[%clk 0:02:16]}  Kf8 {[%clk 0:02:01]} 13. Nxa8 {[%clk 0:02:15]}  Bxd4 {[%clk 0:01:56]} 14. Ne2 {[%clk 0:02:09]}  Bc5 {[%clk 0:01:50]} 15. Qb3 {[%clk 0:02:06]}  Qa5+ {[%clk 0:01:46]} 16. Bd2 {[%clk 0:02:04]}  Qd8 {[%clk 0:01:46]} 17. Qc3 {[%clk 0:02:00]}  Nf6 {[%clk 0:01:27]} 18. Qxc5 {[%clk 0:01:58]}  Nxe4 {[%clk 0:01:27]} 19. Qc2 {[%clk 0:01:43]}  d5 {[%clk 0:01:27]} 20. Nc3 {[%clk 0:01:31]}  Bf5 {[%clk 0:01:22]} 21. Nxe4 {[%clk 0:01:29]}  Bxe4 {[%clk 0:01:21]} 22. Bd3 {[%clk 0:01:29]}  Nd4 {[%clk 0:00:58]} 23. Qc3 {[%clk 0:01:21]}  e5 {[%clk 0:00:56]} 24. Bxe4 {[%clk 0:01:17]}  dxe4 {[%clk 0:00:56]} 25. Qc5+ {[%clk 0:01:08]}  Kg8 {[%clk 0:00:52]} 26. Qxe5 {[%clk 0:01:06]}  Nc2+ {[%clk 0:00:52]} 27. Kd1 {[%clk 0:01:05]}  Qd3 {[%clk 0:00:44]} 28. Qc3 {[%clk 0:00:34]}  Kh7 {[%clk 0:00:29]} 29. Qxc2 {[%clk 0:00:28]}  Qd5 {[%clk 0:00:29]} 30. Nc7 {[%clk 0:00:25]}  Qf5 {[%clk 0:00:27]} 31. Rb5 {[%clk 0:00:21]}  Qg4+ {[%clk 0:00:26]} 32. Kc1 {[%clk 0:00:20]}  Rc8 {[%clk 0:00:26]} 33. Re1 {[%clk 0:00:19]}  f5 {[%clk 0:00:25]} 34. Rxb7 {[%clk 0:00:18]}  Qxg2 {[%clk 0:00:19]} 35. Ne6+ {[%clk 0:00:16]}  Kg8 {[%clk 0:00:13]} 36. Qxc8# {[%clk 0:00:15]} 1-0

[Event "December 5 Late 2023"]
[Site "https://www.chess.com"]
[Date "2023.12.05"]
[Round "1"]
[White "Lymar, Vladislav"]
[Black "Skibbe, Willi"]
[Result "1-0"]
[Board "127"]
[TimeControl "180+1"]
[WhiteFideId "14162180"]
[BlackFideId "4682190"]
[WhiteElo "2617"]
[BlackElo "2306"]
[WhiteTeam "UKR"]
[BlackTeam "GER"]
[WhiteClock "0:00:55"]
[BlackClock "0:01:22"]

1. d4 {[%clk 0:02:58]}  d5 {[%clk 0:02:57]} 2. c4 {[%clk 0:02:59]}  e6 {[%clk 0:02:57]} 3. cxd5 {[%clk 0:02:59]}  exd5 {[%clk 0:02:56]} 4. Bf4 {[%clk 0:03:00]}  c6 {[%clk 0:02:56]} 5. e3 {[%clk 0:03:00]}  Bd6 {[%clk 0:02:57]} 6. Bxd6 {[%clk 0:03:00]}  Qxd6 {[%clk 0:02:58]} 7. Bd3 {[%clk 0:03:00]}  Nf6 {[%clk 0:02:56]} 8. Nc3 {[%clk 0:03:01]}  Bg4 {[%clk 0:02:55]} 9. Nge2 {[%clk 0:02:52]}  Nbd7 {[%clk 0:02:55]} 10. f3 {[%clk 0:02:48]}  Bh5 {[%clk 0:02:53]} 11. Nf4 {[%clk 0:02:49]}  Bg6 {[%clk 0:02:53]} 12. Nxg6 {[%clk 0:02:48]}  hxg6 {[%clk 0:02:54]} 13. f4 {[%clk 0:02:39]}  O-O-O {[%clk 0:02:52]} 14. Qf3 {[%clk 0:02:33]}  Rde8 {[%clk 0:02:46]} 15. O-O-O {[%clk 0:02:32]}  Qe6 {[%clk 0:02:46]} 16. Rde1 {[%clk 0:02:25]}  Qg4 {[%clk 0:02:35]} 17. Kd2 {[%clk 0:02:05]}  Qxf3 {[%clk 0:02:31]} 18. gxf3 {[%clk 0:02:06]}  Rh3 {[%clk 0:02:31]} 19. Ref1 {[%clk 0:01:57]}  Reh8 {[%clk 0:02:28]} 20. Rf2 {[%clk 0:01:56]}  Ne8 {[%clk 0:02:27]} 21. Ne2 {[%clk 0:01:33]}  Nd6 {[%clk 0:02:23]} 22. e4 {[%clk 0:01:28]}  Nb6 {[%clk 0:02:12]} 23. b3 {[%clk 0:01:27]}  Kd8 {[%clk 0:02:10]} 24. f5 {[%clk 0:01:14]}  gxf5 {[%clk 0:02:08]} 25. e5 {[%clk 0:01:15]}  Ndc8 {[%clk 0:01:55]} 26. Bxf5 {[%clk 0:01:15]}  R3h5 {[%clk 0:01:55]} 27. Bg4 {[%clk 0:01:15]}  R5h6 {[%clk 0:01:54]} 28. Ng3 {[%clk 0:01:10]}  g6 {[%clk 0:01:52]} 29. f4 {[%clk 0:01:10]}  Rh4 {[%clk 0:01:43]} 30. h3 {[%clk 0:01:05]}  Ne7 {[%clk 0:01:42]} 31. Rhf1 {[%clk 0:01:00]}  Nd7 {[%clk 0:01:31]} 32. f5 {[%clk 0:00:59]}  gxf5 {[%clk 0:01:30]} 33. Nxf5 {[%clk 0:01:00]}  Nxf5 {[%clk 0:01:29]} 34. Rxf5 {[%clk 0:01:00]}  Nf8 {[%clk 0:01:23]} 35. Rxf7 {[%clk 0:00:58]}  Ne6 {[%clk 0:01:22]} 36. Bxe6 {[%clk 0:00:55]} 1-0